Workbook

Sheet Cover Page
D1: Add company logo
N2: Version 2.1 11/11/19
B8: Add photo
N13: Notes:
N14: This template may require adjustments by individual operators to meet specific reporting requirements as defined in the site Permit(s)
B29: Annual Performance Report 2021
B31: Permit EPR/BJ6178IX
B33: SUEZ R&R Kirklees EfW
B35: other name of facility (if applicable)
B37: Kirklees EfW
B39: Year: | C39: 2021
B41: Address: | C41: Diamond Street, Huddersfield, West Yorkshire HD1 6BZ
B43: Tel: | C43: 01484 448701
B45: Email: | C45: mark.ryan@suez.com
B47: Prepared by: | C47: Steve Taylor | F47: Position: | G47: EIR Advisor
B49: Approved by: | C49: Mark Ryan | F49: Position: | G49: Plant Manager
B51: Version: | C51: 1
B53: Issue Date: | C53: 2022-01-01

Sheet Contents
A1: =+'Cover Page'!$B$29 -> Annual Performance Report 2021 | E1: =+'Cover Page'!$B$33 -> SUEZ R&R Kirklees EfW
A3: Contents | K3: Notes:
A4: Section | B4: Subject | H4: Page | K4: Section references and Page nos. to be inserted
B5: Facility Information | K5: Sections and Subjects may require adjustment by individual operators to meet specific reporting requirements as defined in the sites Permit(s)
B6: Operational Summary
B7: Operational Data
B8: Performance Form 1
B9: Energy Form 1
B10: Permit Compliance
B11: Improvements
B12: Public Liasion
B13: Residue Quality - Optional
B14: Emissions to Water
B15: Emissions to Air (periodically monitored)
B16: Emissions to Air (continuously monitored)
B17: Hydrogen Chloride emissions
B18: Sulphur Dioxdie emsissions
B19: Oxides of Notrigen emissions
B20: Total Organic Carbon emissions
B21: Particulate Matter emissions
B22: Carbon Monoxide emissions
B23: Ammonia emissions
A26: Version Control
A27: Section | B27: Information | H27: Date
A34: Distribution
A35: Copy | B35: Name, Role | H35: No.
A44: This report is required under the Industrial Emissions Directive’s Article 55(2) requirements on reporting and public information on waste incineration plants and co-incineration plants, which require the operator to produce an annual report on the functioning and monitoring of the plant and make it available to the public.

Sheet Facility Info
A1: =+'Cover Page'!$B$29 -> Annual Performance Report 2021 | E1: =+'Cover Page'!$B$33 -> SUEZ R&R Kirklees EfW
A3: Plant Description and Design | K3: Notes:
A5: This non-hazardous waste incinerator operates 24/7 and can receive up to 150,000 tonnes of municipal waste from Kirklees Council as well as commercial/trade waste. The plant has one furnace line with a processing capacity of 136,000 tonnes per annum. The heat produced by waste incineration is used to raise superheated steam which generates 9.5 MWh of electricity. Activities associated with the incineration are receipt and storage of municipal waste, production of steam and electricity, abatement of flue gas and handling of Incinerator Bottom Ash (IBA) and Air Pollution Control Residue (APCR). (alt enter to make new para) | K5: Include summary of plant design, design capacity, no. of combustion lines, electrical and heat capacity and any other general information that descibes the facility, its location and purpose
A14: Summary of Operational Processes and Procedures
A16: Incoming waste is delivered to site by refuse collection trucks. It is then checked in, weighed and delivered into the reception hall. RECEPTION HALL A large reception hall allows for refuse collection trucks to manoeuvre and tip waste safely. Air needed for combustion is drawn into the furnace from here so that odour and dust do not escape the building. BUNKER Waste vehicles reverse to a wheel stop and tip their loads into a large concrete bunker. Mixing of waste occurs as the crane driver sorts the waste looking for unsuitable material to be removed, and to improve the homogeneity of the incinerator feedstock. CONTROL ROOM The plant’s control room centralises the operation of all equipment, including the grab crane used to mix and load waste into a hopper that feeds the furnace. All on-site functions are monitored automatically and manually. Its systems verify in real time that equipment is functioning properly, continuously monitor the combustion gas, and maximise the efficiency of the entire EfW process. GRATE AND BOILER Waste is lifted into the charging hoppers by the crane. From here it falls into the furnace-charging chute and then onto the grate system for incineration. The thermal energy released from the burning is used to convert water to super-heated steam. At high pressure, this steam drives a turbine to generate electricity. ELECTRICITY GENERATION Electricity is generated at 11kv, with an electric capacity of 9.5 MWh. INCINERATOR BOTTOM ASH (IBA) Ash left on the grate after incineration is carried by conveyor, after quenching, to a storage bunker. A magnet above the conveyor extracts ferrous material for recycling. The remaining bottom ash is trucked off-site for recycling. AIR-COOLED CONDENSERS After exiting the turbine, the air stream is cooled and condensed back into water through air condensers. This recovered water is treated and reused in the boilers to produce more steam. EMISSION CONTROL The gases from the furnace are subject to a rigorous cleaning process involving selective non-catalytic reduction (SNCR), spray absorbers, and active carbon injection. This removes oxides of nitrogen, acidic gases, dioxins, and heavy metals from the gas stream. AIR POLLUTION CONTROL RESIDUE (APCR) The cleaned gas passes through fine-fabric bag filters to remove solid particles before it is emitted through the stack. The resultant APCR residue, or fly-ash, contains particles from the incineration process, lime used in the spray absorbers, salts and carbon dust. It is stored in a sealed silo until it is tankered away for recycling. EMISSIONS MONITORING As they pass through the stack, the residual flue gases from the process are continuously monitored before release. This data is relayed automatically to the control room. | K16: Include summary of key processes and procedures such as (but not limited to); waste reception, control rooms, grate, bed and bolier, energy & heat generation, cooling systems, residue management, emission controls, health and safety systems, maintenance

Sheet Operational Data
A1: =+'Cover Page'!$B$29 -> Annual Performance Report 2021 | E1: =+'Cover Page'!$B$33 -> SUEZ R&R Kirklees EfW
A3: Operational Data
A4: Plant Size | B4: 135000 | D4: tonnes pa | E4: 11.5 | F4: MWth | G4: 10 | H4: MWe
A5: No. of combustion lines | B5: 1 | D5: No. of Turbines: | F5: 1
A7: Waste types received | B7: Unit | C7: Q1 | D7: Q2 | E7: Q3 | F7: Q4 | G7: Year Total | H7: %
A8: Household / Local Authority | B8: tonnes | C8: 34499 | D8: 26053 | E8: 36842 | F8: 34762 | G8: =SUM(C8:F8) -> 132156 | H8: =IF(G8>0,G8/$G$18,"-") -> 0.9819665188
A9: Commercial & Industrial | C9: 39 | D9: 14 | E9: 45 | F9: 1554 | G9: =SUM(C9:F9) -> 1652 | H9: 0.012274953
A10: Hazardous | C10: 0 | D10: 0 | E10: 0 | F10: 0 | G10: 0 | H10: -
A11: Clinical | C11: 95 | D11: 53 | E11: 89 | F11: 538 | G11: 775 | H11: 0.005758528194
A12: Waste wood (biomass) | C12: 0 | D12: 0 | E12: 0 | F12: 0 | G12: 0 | H12: -
A13: Refuse derived fuel | C13: 0 | D13: 0 | E13: 0 | F13: 0 | G13: 0 | H13: -
A14: Solid recovered fuel | C14: 0 | D14: 0 | E14: 0 | F14: 0 | G14: 0 | H14: -
A15: Other [Please specify] | C15: 0 | D15: 0 | E15: 0 | F15: 0 | G15: 0 | H15: -
A16: Other [Please specify] | C16: 0 | D16: 0 | E16: 0 | F16: 0
A17: Other [Please specify] | C17: 0 | D17: 0 | E17: 0 | F17: 0
A18: Total waste received | C18: 34664 | D18: 26171 | E18: 37042 | F18: 36468 | G18: =SUM(G8:G17) -> 134583 | H18: 1
A19: Rejected Waste | C19: 0 | D19: 0 | E19: 0 | F19: 0 | G19: =SUM(C19:F19) -> 0 | H19: =IF(G19>0,G19/$G$18,"-") -> -
A20: Waste transferred out | G20: =SUM(C20:F20) -> 0 | H20: =IF(G20>0,G20/$G$18,"-") -> -
A21: Total waste combusted | C21: =C18-SUM(C19:C20) -> 34664 | D21: =D18-SUM(D19:D20) -> 26171 | E21: 37042 | F21: 36468 | G21: =SUM(C21:F21) -> 134345 | H21: =IF(G21>0,G21/$G$18,"-") -> 0.9982315746
A22: Energy Useage / Export | B22: Unit | C22: Q1 | D22: Q2 | E22: Q3 | F22: Q4 | G22: Year Total | H22: KWh/te
A23: Power Generated | B23: MWh | C23: 20897 | D23: 16314 | E23: 21632 | F23: 23036 | G23: =SUM(C23:F23) -> 81879 | H23: =IF(G23>0,G23*1000/$G$21,"-") -> 609.4681603
A24: Power Exported | C24: 18013 | D24: 14163 | E24: 18803 | F24: 20191 | G24: =SUM(C24:F24) -> 71170 | H24: =IF(G24>0,G24*1000/$G$21,"-") -> 529.7554803
A25: Power Used on site | C25: 2884 | D25: 2151 | E25: 2829 | F25: 2845 | G25: =SUM(C25:F25) -> 10709 | H25: =IF(G25>0,G25*1000/$G$21,"-") -> 79.71268004
A26: Power Imported | C26: 157 | D26: 804 | E26: 7 | F26: 17 | G26: 985 | H26: =IF(G26>0,G26*1000/$G$21,"-") -> 7.331869441
A27: Parasitic Load | B27: % | C27: =IF(C23>0,1-C24/(C23+C26),"-") -> 0.1444381115 | D27: 0.1726253067 | E27: 0.1310596608 | F27: 0.1241487008 | G27: =IF(G23>0,1-G24/(G23+G26),"-") -> 0.1411228036
A28: Thermal Energy Produced | B28: GWh | C28: 0 | D28: 0 | E28: 0 | F28: 0 | G28: =SUM(C28:F28) -> 0 | H28: =IF(G28>0,G28*1000/$G$21,"-") -> -
A29: Thermal Energy Exported | C29: 0 | D29: 0 | E29: 0 | F29: 0 | G29: 0 | H29: =IF(G29>0,G29*1000/$G$21,"-") -> -
A30: R1 value | G30: Design / Operational / n/a
A32: Waste Disposal & Recovery | B32: Unit | C32: Q1 | D32: Q2 | E32: Q3 | F32: Q4 | G32: Year Total | H32: % inputs
A33: APC Residues - produced | B33: tonnes | C33: 1266 | D33: 973 | E33: 1256 | F33: 4765 | G33: =SUM(C33:F33) -> 8260 | H33: =IF(G33>0,G33/$G$21,"-") -> 0.06148349399
A34: IBA - produced | C34: 7068 | D34: 5656 | E34: 7416 | F34: 26901 | G34: 47041 | H34: =IF(G34>0,G34/$G$21,"-") -> 0.3501507313
A35: Metals recycling | C35: 698 | D35: 574 | E35: 684 | F35: 2607 | G35: =SUM(C35:F35) -> 4563 | H35: 0.03396479214
A36: Other | C36: 0 | D36: 0 | E36: 0 | F36: 0 | G36: =SUM(C36:F36) -> 0 | H36: -
A37: Other | C37: 0 | D37: 0 | E37: 0 | F37: 0 | G37: 0 | H37: -
A38: Other | C38: 0 | D38: 0 | E38: 0 | F38: 0 | G38: 0 | H38: -
A40: Raw Material Usage | B40: Unit | C40: Q1 | D40: Q2 | E40: Q3 | F40: Q4 | G40: Year Total | H40: kg or Ltr /te
A41: Mains Water | B41: m3 | C41: 3000 | D41: 3000 | E41: 3000 | F41: 3000 | G41: =SUM(C41:F41) -> 12000 | H41: =IF(G41>0,G41/$G$21,"-") -> 0.0893222673
A42: Other Water | B42: m3 | C42: 4137 | D42: 3950 | E42: 6497 | F42: 6677 | G42: 21261 | H42: =IF(G42>0,G42/$G$21,"-") -> 0.1582567271
A43: Ammonia / Urea | B43: kgs | C43: 86000 | D43: 60000 | E43: 73000 | F43: 54000 | G43: 273000 | H43: 2.032081581
A44: Activated Carbon | B44: kgs | C44: 12960 | D44: 9941 | E44: 13236 | F44: 12357 | G44: 48494 | H44: 0.3609661692
A45: Lime / hydrated lime | B45: kgs | C45: 294000 | D45: 238000 | E45: 273000 | F45: 245000 | G45: 1050000 | H45: 7.815698388
A46: Fuel oil | B46: ltrs | C46: 81756 | D46: 93733 | E46: 15863 | F46: 4884 | G46: 196236 | H46: 1.460687037
A47: Gas | B47: cf | C47: 0 | D47: 0 | E47: 0 | F47: 0 | G47: 0 | H47: -
A48: Other | C48: 0 | D48: 0 | E48: 0 | F48: 0 | G48: 0
A50: Summary of Hours | B50: Line/Unit | C50: Q1 | D50: Q2 | E50: Q3 | F50: Q4 | G50: Year Total
A51: Hours of waste combustion, total | B51: 1 | C51: 2160 | D51: 1672 | E51: 2207 | F51: 2208 | G51: =SUM(C51:F51) -> 8247 | H51: x %
A52: Hours of waste combustion, total | B52: 2 | C52: 0 | D52: 0 | E52: 0 | F52: 0 | G52: 0 | H52: x %
A53: Hours of waste combustion, total | B53: 3 | C53: 0 | D53: 0 | E53: 0 | F53: 0 | G53: 0 | H53: x %
A54: Hours of waste combustion, total | B54: 4 | C54: 0 | D54: 0 | E54: 0 | F54: 0 | G54: 0 | H54: x %
A55: Hours of waste combustion, total | B55: 5 | C55: 0 | D55: 0 | E55: 0 | F55: 0 | G55: =SUM(C55:F55) -> 0 | H55: x %
A56: Overall avaliability, mean average of all lines | B56: hrs | C56: 2160 | D56: 2136 | E56: 1681 | F56: 1657 | G56: 1679 | H56: =+(G56)/8760 -> 0.1916666667
A57: Hours of turbine operations, total | B57: 1 | C57: 2051 | D57: 1625 | E57: 2204 | F57: 2196 | G57: 8076 | H57: x %
A58: Hours of turbine operations, total | B58: 2 | C58: 0 | D58: 0 | E58: 0 | F58: 0 | G58: 0 | H58: x %
A59: Hours of heat / steam export | C59: 0 | D59: 0 | E59: 0 | F59: 0 | G59: 0 | H59: =IF(B59>0,G58/8760,"n/a") -> n/a
A60: Net Calorific value of waste | B60: MJ/kg | C60: 9.133128875 | D60: 9.064046858 | E60: 9.407521885 | F60: 9.748521127 | G60: =AVERAGE(C60:F60) -> 9.338304686
A61: Abnormal Events | B61: qty. | C61: 0 | D61: 0 | E61: 0 | F61: 0 | G61: 0 | H61: =IF(G61>0,"yes","no") -> no
A62: Abnormal operation | B62: hours | C62: 0 | D62: 0 | E62: 0 | F62: 0 | G62: 0 | H62: =+(G62)/8760 -> 0
A63: Permit Breaches | B63: qty. | C63: 1 | D63: 0 | E63: 0 | F63: 1 | G63: 2 | H63: =IF(G63>0,"yes","no") -> yes

Sheet Operational Summary
A1: =+'Cover Page'!$B$29 -> Annual Performance Report 2021 | E1: =+'Cover Page'!$B$33 -> SUEZ R&R Kirklees EfW
A3: Summary of Plant Operations and Maintenance during the reporting year | K3: Notes:
A5: Operations: 2 hours of unplanned downtime. The Issues were: Bottom ash extractor hydraulic drive motor failure. OEE has been excellent with minimum speed and quality losses. A Glass line coating has been applied in 2 of the 4 BHF hoppersas a trail to improve life cycle. A full set of new BHF bags have been fitted aswell aswel as a full new set of grate bars. | K5: Include summary of key operational and/or mainteanance activity undertaken in the year, such as any major component upgrades and/or replacements
A11: Summary of Residue Handling for the reporting year
A13: Canal side Wet slag extractor hydraulic drive motor failure. new componet fitted and extra checks put in place. Burn out quality has been very good all year even more so after a full set of 3 grates were fitted in the May outage, APCR contiues to be taken off site by Castle environment. No IBA exceedance but Investigations carried out if above 90% of limits. | K13: Include in here a summary of residue handling regimes and destinations

Sheet Perf. Form 1
A1: =+'Cover Page'!C39 -> 2021 | B1: Annual Reporting Performance Form 1
A3: =+'Cover Page'!B31 -> Permit EPR/BJ6178IX | F3: Operator: | G3: =+'Cover Page'!B37 -> Kirklees EfW
A4: Facility: | B4: =+'Cover Page'!B33:I33 -> SUEZ R&R Kirklees EfW | F4: Form: | G4: Performance 1
A6: Reporting Period from: | D6: 2021-01-01 | F6: to: | G6: 2021-12-31
A8: =+A1 -> 2021 | B8: Annual Reporting of Waste Disposal and Recovery
A9: Waste Description | C9: Disposal Route(s) | E9: Disposal Tonnes | G9: Recovery Tonnes | I9: % / tonne of waste incinerated
A10: 1) Hazardous Wastes
A11: APC Residues | E11: 4765 | I11: =IF((E11+G11)>0,(E11+G11)/'Operational Data'!$G$21, "-") -> 0.03546838364
A12: IBA | I12: =IF((E12+G12)>0,(E12+G12)/'Operational Data'!$G$21, "-") -> -
I13: =IF((E13+G13)>0,(E13+G13)/'Operational Data'!$G$21, "-") -> -
I14: =IF((E14+G14)>0,(E14+G14)/'Operational Data'!$G$21, "-") -> -
A15: Total Hazardous Waste | E15: =SUM(E11:F14) -> 4765 | G15: =SUM(G11:H14) -> 0 | I15: =IF((E15+G15)>0,(E15+G15)/'Operational Data'!$G$21, "-") -> 0.03546838364
A17: 2) Non-Hazardous Wastes
A18: IBA | E18: 26901 | I18: =IF((E18+G18)>0,(E18+G18)/'Operational Data'!$G$21, "-") -> 0.2002381927
A19: Ferrous Metal | E19: 2607 | I19: =IF((E19+G19)>0,(E19+G19)/'Operational Data'!$G$21, "-") -> 0.01940526257
A20: Process Water | E20: 0 | I20: =IF((E20+G20)>0,(E20+G20)/'Operational Data'!$G$21, "-") -> -
I21: =IF((E21+G21)>0,(E21+G21)/'Operational Data'!$G$21, "-") -> -
I22: =IF((E22+G22)>0,(E22+G22)/'Operational Data'!$G$21, "-") -> -
A23: Total Non-Hazardous Waste | E23: =SUM(E18:F22) -> 29508 | G23: =SUM(G18:H22) -> 0 | I23: =IF((E23+G23)>0,(E23+G23)/'Operational Data'!$G$21, "-") -> 0.2196434553
A24: TOTAL WASTE | E24: =+E23+E15 -> 34273 | G24: =+G23+G15 -> 0 | I24: =IF((E24+G24)>0,(E24+G24)/'Operational Data'!$G$21, "-") -> 0.2551118389
A26: Operator’s comments :
A31: =+A1 -> 2021 | B31: Annual Reporting of Water and Other Raw Material Usage
A32: Raw Material | E32: Usage | G32: Unit | H32: Specific Useage | J32: Unit
A33: Mains Water | E33: =+'Operational Data'!G41 -> 12000 | G33: m3 | H33: =IF(E33>0,E33/'Operational Data'!$G$21,"-") -> 0.0893222673 | J33: m3/te
A34: Total Water | E34: =+'Operational Data'!G42+'Operational Data'!G41 -> 33261 | G34: m3 | H34: =IF(E34>0,E34/'Operational Data'!$G$21,"-") -> 0.2475789944 | J34: m3/te
A35: Urea / Ammonia | E35: =+'Operational Data'!G43 -> 273000 | G35: kg | H35: =IF(E35>0,E35/'Operational Data'!$G$21,"-") -> 2.032081581 | J35: kg/te
A36: Activated Carbon | E36: =+'Operational Data'!G44 -> 48494 | G36: kg | H36: =IF(E36>0,E36/'Operational Data'!$G$21,"-") -> 0.3609661692 | J36: kg/te
A37: Lime / hydrated lime / Sodium Bicarb. | E37: =+'Operational Data'!G45 -> 1050000 | G37: kg | H37: =IF(E37>0,E37/'Operational Data'!$G$21,"-") -> 7.815698388 | J37: kg/te
A39: Operator’s comments :
A43: =+A31 -> 2021 | B43: Annual Reporting of other performance indicators
A44: Parameter | C44: Results by Line
C45: A1 | D45: A2 | E45: A3 | F45: A4 | G45: A5 | I45: Turbine 1 | J45: Turbine 2
A46: Operating hours for the year, hours | C46: ='Operational Data'!G51 -> 8247 | D46: 0 | E46: 0 | F46: 0 | G46: 0 | H46: 0 | I46: 0 | J46: 0
A47: Number of periods of abnormal operation, qty. | C47: ='Operational Data'!G61 -> 0 | D47: 0 | E47: 0 | F47: 0 | G47: 0 | H47: 0 | I47: 0 | J47: 0
A48: Cumulative hours of abnormal operation for this year, hours | C48: ='Operational Data'!G62 -> 0 | D48: 0 | E48: 0 | F48: 0 | G48: 0 | H48: 0 | I48: 0 | J48: 0
A50: Operator’s comments :
A54: Signed: | G54: Date:

Sheet Energy Form 1
A1: =+'Cover Page'!C39 -> 2021 | B1: Annual Reporting of Energy Usage/Export
A3: =+'Cover Page'!B31 -> Permit EPR/BJ6178IX | F3: Operator: | G3: =+'Cover Page'!B37 -> Kirklees EfW
A5: Facility: | B5: =+'Cover Page'!B33:I33 -> SUEZ R&R Kirklees EfW | F5: Form: | G5: Energy 1
A7: Reporting Period from: | D7: =+'Perf. Form 1'!D6:E6 -> 2021-01-01 | F7: to: | G7: =+'Perf. Form 1'!G6:H6 -> 2021-12-31
A9: Energy Source | D9: Energy Usage | F9: Unit | G9: Specific Useage (KWh/tonne incinerated
A10: Electricity Produced | D10: =+'Operational Data'!G23 -> 81879 | F10: MWh | G10: =+'Operational Data'!H23 -> 609.4681603
A11: Electricity Imported | D11: =+'Operational Data'!G26 -> 985 | F11: MWh | G11: =+'Operational Data'!H26 -> 7.331869441
A12: Electricity Exported | D12: =+'Operational Data'!G24 -> 71170 | F12: MWh | G12: =+'Operational Data'!H24 -> 529.7554803
A13: Gas Oil | D13: - | F13: tonnes | G13: =+'Operational Data'!H28 -> -
A14: Steam/hot water exported | D14: - | F14: GWh | G14: =+'Operational Data'!H29 -> -
A17: Operator’s comments :
A24: Signed: | G24: Date:

Sheet Permit Compliance
A1: =+'Cover Page'!$B$29 -> Annual Performance Report 2021 | E1: =+'Cover Page'!$B$33 -> SUEZ R&R Kirklees EfW
A3: Summary of Permit Compliance
A5: Compliance with permit limits for continuously monitored pollutants
A7: The plant met its emission limits as shown in the table below:
A8: Substance | C8: Percentage time compliant during operation
C9: Half-hourly limit | F9: Daily limit
A10: Particulates | C10: 1 | F10: 1
A11: Oxides of nitrogen | C11: 1 | F11: 1
A12: Sulphur dioxide | C12: 1 | F12: 1
A13: Carbon monoxide | C13: 100%, 95% of 10-min averages | F13: 1
A14: Total organic carbon | C14: 1 | F14: 1
A15: Hydrogen chloride | C15: 1 | F15: 1
A16: Hydrogen fluoride | C16: 1 | F16: 1
A17: Summary of any notifications or non-compliances under the permit
A18: Date | B18: Summary of notification or non-compliance [including Line/Reference] | E18: Reason | H18: Measures taken to prevent reoccurrence
A19: 2021-02-05 | B19: Reportable - Hydrogen fluride breach on Bi Annual testing | E19: Poor combustion on the day of testing with burners used to support process | H19: Re test booked at earliest opertunity and passed
A25: Summary of any complaints received and actions to taken to resolve them.
A26: Date | B26: Summary of complaint [including Line/Reference] | E26: Reason * | H26: Measures taken to prevent reoccurrence
E28: * including whether substantiated by the operator or the EA

Sheet Improvements
A1: =+'Cover Page'!$B$29 -> Annual Performance Report 2021 | E1: =+'Cover Page'!$B$33 -> SUEZ R&R Kirklees EfW
A3: Summary of Plant Improvements
A5: Summary of any efficiency improvements that have been completed within the year.
A6: Very minimal improvement made to plant during 2021 due to contract postion. Lots of work has gone in to contract position to secure an extension till 2025. We have been carrying out trails in reducincing flue gas temperatures in the reaction chamber which is showing a positive effect in the reduction of lime used and APCR produced.
A10: Summary of any permit improvement conditions that have been completed within the year and the resulting environmental benefits.
A11: N/A
A14: Summary of any changes to the plant or operating techniques which required a variation to the permit and a summary of the resulting environmental impact.
A15: N/A
A18: Summary of any other improvements made to the plant or planned to be made and a summary of the resulting environmental benefits.
A19: N/A

Sheet Public Liasion
A1: =+'Cover Page'!$B$29 -> Annual Performance Report 2021 | E1: =+'Cover Page'!$B$33 -> SUEZ R&R Kirklees EfW
A3: Details of Public & Stakeholder Liasion
A5: Summary of events held during the reporting year.
A6: Date | C6: Description
A7: Monthly | C7: Monthly operational & contractual meeting held with the client (Kirklees Council).
A12: List of events planned for next year
A13: Date | C13: Description
A14: Monthly | C14: Monthly operational & contractual meeting held with the client (Kirklees Council)
A19: If you wish to be involved in the public liasion programme, please contact _________________

Sheet Residue Quality
A1: =+'Cover Page'!$B$29 -> Annual Performance Report 2021 | E1: =+'Cover Page'!$B$33 -> SUEZ R&R Kirklees EfW
A3: Residue Quality Monitoring Requirements
A5: Summary of monitoring undertaken and compliance
A6: Quarterly IBA and APCR samples are taken at Kirklees
A8: Weekly hazard assessments are carried out at Kirklees
A13: Commentary on any specific events
A14: Date & Event | C14: Description
A21: Residue Quality Monitoring Results
A22: Parameter (unit) | C22: Limit | D22: Normal Operation
D23: Bottom ash | F23: APC Residues
A24: Loss on Ignition (%) | C24: <5% | D24: -
A25: ToC (%) | C25: <3% | D25: 0.0125
A26: No. of Assessments Undertaken | C26: --- | D26: 1 per quarter Line 1
A27: No. of Hazardous Assessments | C27: --- | D27: Weekly hazard assessments unless Plant is on outage
A29: Comments :
A30: Quarterly samples are taken for 1 line none of the samples results for TOC were above 3%

Sheet Water
A1: =+'Cover Page'!$B$29 -> Annual Performance Report 2021 | E1: =+'Cover Page'!$B$33 -> SUEZ R&R Kirklees EfW
A3: Emissions to Water
A5: Summary of monitoring undertaken and compliance
A6: No Water sampling carried out at Kirklees
A11: Commentary on any specific events
A12: Date & Event | C12: Description
A13: N/A | C13: N/A
A18: Emissions to Water / Sewer
A19: Parameter | D19: Monitoring Frequency | G19: Limit | H19: Target | I19: Max. | J19: Average
A20: N/A | D20: N/A | G20: N/A | H20: N/A | I20: N/A | J20: N/A

Sheet Air (periodic)
A1: =+'Cover Page'!$B$29 -> Annual Performance Report 2021 | E1: =+'Cover Page'!$B$33 -> SUEZ R&R Kirklees EfW
A3: Emissions to Air (periodically monitored)
A5: Summary of monitoring undertaken, standards used and compliance | M5: Notes:
A6: H1 and H2 testing carried out biannually. | M6: Template may require adjustment for any bespoke monitoring requirements of permit.
A9: Results of emissions to air that are periodically monitored
A10: Substance | C10: Ref. Period | D10: Emission Limit Value | F10: Average | M10: User to add additional tables as necessary, depending on whether quarterly or bi-annual reporting is required for the compliance year
F11: A1 | G11: A2 | H11: A3 | I11: A4 | J11: A5
A12: Hydrogen fluoride | C12: 1 hr | D12: 2 mg/m3 | F12: 3.42 | G12: 0 | H12: 0 | I12: 0 | J12: 0
A13: Cd and Th and their compounds | C13: 6-8hrs | D13: 0.05 mg/m3 | F13: 0.0015 | G13: 0 | H13: 0 | I13: 0 | J13: 0
A14: Hg and its compounds | C14: 6-8hrs | D14: 0.05 mg/m3 | F14: 0.002 | G14: 0 | H14: 0 | I14: 0 | J14: 0
A15: Sb, As, Pb, Cr, Co, Cu, Mn, Ni, V and their compounds | C15: 6-8hrs | D15: 0.5 mg/m3 | F15: 0.3255 | G15: 0 | H15: 0 | I15: 0 | J15: 0
A16: Dioxins & Furans (I-TEQ) | C16: 6-8hrs | D16: 0.1 ng/m3 | F16: 0.0079 | G16: 0 | H16: 0 | I16: 0 | J16: 0
A17: PCBs (WHO-TEQ Humans / Mammals) | C17: 6-8hrs | D17: None set ng/m3 | F17: 0.0007675 | G17: 0 | H17: 0 | I17: 0 | J17: 0
A18: PCBs (WHO-TEQ Fish) | C18: 6-8hrs | D18: None set ng/m3 | F18: 6.1e-05 | G18: 0 | H18: 0 | I18: 0 | J18: 0
A19: PCBs (WHO-TEQ Birds) | C19: 6-8hrs | D19: None set ng/m3 | F19: 0.003384 | G19: 0 | H19: 0 | I19: 0 | J19: 0
A20: Dioxins & Furans (WHO-TEQ Humans / Mammals) | C20: 6-8hrs | D20: None set ng/m3 | F20: 0.0285 | G20: 0 | H20: 0 | I20: 0 | J20: 0
A21: Dioxins & Furans (WHO-TEQ Fish) | C21: 6-8hrs | D21: None set ng/m3 | F21: 0.0056 | G21: 0 | H21: 0 | I21: 0 | J21: 0
A22: Dioxins & Furans (WHO-TEQ Birds) | C22: 6-8hrs | D22: None set ng/m3 | F22: 0.01196 | G22: 0 | H22: 0 | I22: 0 | J22: 0
A23: Anthanthrene | C23: 6-8hrs | D23: None set µg/m3 | F23: 0.011 | G23: 0 | H23: 0 | I23: 0 | J23: 0
A24: Benzo(a)anthracene | C24: 6-8hrs | D24: None set µg/m3 | F24: 0.4965 | G24: 0 | H24: 0 | I24: 0 | J24: 0
A25: Benzo(a)pyrene | C25: 6-8hrs | D25: None set µg/m3 | F25: 0.08 | G25: 0 | H25: 0 | I25: 0 | J25: 0
A26: Benzo(b)fluoranthene | C26: 6-8hrs | D26: None set µg/m3 | F26: 0.1085 | G26: 0 | H26: 0 | I26: 0 | J26: 0
A27: Benzo(b)naptho(2,1-d) thiophene | C27: 6-8hrs | D27: None set µg/m3 | F27: 0.27 | G27: 0 | H27: 0 | I27: 0 | J27: 0
A28: Benzo(c)phenanthrene | C28: 6-8hrs | D28: None set µg/m3 | F28: 0.27 | G28: 0 | H28: 0 | I28: 0 | J28: 0
A29: Benzo(ghi)perylene | C29: 6-8hrs | D29: None set µg/m3 | F29: 0.019 | G29: 0 | H29: 0 | I29: 0 | J29: 0
A30: Benzo(k)fluoranthene | C30: 6-8hrs | D30: None set µg/m3 | F30: 0.046 | G30: 0 | H30: 0 | I30: 0 | J30: 0
A31: Cholanthrene | C31: 6-8hrs | D31: None set µg/m3 | F31: 0.011 | G31: 0 | H31: 0 | I31: 0 | J31: 0
A32: Chrysene | C32: 6-8hrs | D32: None set µg/m3 | F32: 0.458 | G32: 0 | H32: 0 | I32: 0 | J32: 0
A33: Cyclopenta(cd)pyrene | C33: 6-8hrs | D33: None set µg/m3 | F33: 0.01 | G33: 0 | H33: 0 | I33: 0 | J33: 0
A34: Dibenzo(ai)pyrene | C34: 6-8hrs | D34: None set µg/m3 | F34: 0.0002 | G34: 0 | H34: 0 | I34: 0 | J34: 0
A35: Dibenzo(ah)anthracene | C35: 6-8hrs | D35: None set µg/m3 | F35: 0.01 | G35: 0 | H35: 0 | I35: 0 | J35: 0
A36: Fluoranthene | C36: 6-8hrs | D36: None set µg/m3 | F36: 12.3535 | G36: 0 | H36: 0 | I36: 0 | J36: 0
A37: Indeno(123-cd) pyrene | C37: 6-8hrs | D37: None set µg/m3 | F37: 0.03 | G37: 0 | H37: 0 | I37: 0 | J37: 0
A38: Naphthalene | C38: 6-8hrs | D38: None set µg/m3 | F38: 133.765 | G38: 0 | H38: 0 | I38: 0 | J38: 0
A39: Comments :

Sheet Air (CEMS)
A1: =+'Cover Page'!$B$29 -> Annual Performance Report 2021 | I1: =+'Cover Page'!$B$33 -> SUEZ R&R Kirklees EfW
A3: Emissions to Air (continously monitored)
P4: Notes:
A5: Summary of monitoring undertaken, standards used and compliance | P5: Template may require adjustment for any bespoke monitoring requirements of permit
A6: Continuous monitoring of the parameters below.
A9: Results of emissions to air that are continuously monitored
A10: Substance | B10: Reference Period | C10: Emission Limit Value | D10: A1 | F10: A2 | H10: A3 | J10: A4 | L10: A5
D11: Max. | E11: Avg. | F11: Max. | G11: Avg. | H11: Max. | I11: Avg. | J11: Max. | K11: Avg. | L11: Max. | M11: Avg.
A12: Oxides of nitrogen | B12: Daily mean | C12: 200 mg/m3 | D12: =NOx!$O$19 -> 203.2 | E12: =NOx!$N$19 -> 184.0166667
B13: ½ hourly mean | C13: 400 mg/m3 | D13: =NOx!$M$19 -> 354.5 | E13: =NOx!$L$19 -> 184.1363636
A14: Particulates | B14: Daily mean | C14: 10 mg/m3 | D14: =Particulates!$O$19 -> 19.6 | E14: =Particulates!$N$19 -> 2.108333333
B15: ½ hourly mean | C15: 30 mg/m3 | D15: =Particulates!$M$19 -> 41.3 | E15: =Particulates!$L$19 -> 2.108333333
A16: Total Organic Carbon | B16: Daily mean | C16: 10 mg/m3 | D16: =TOC!$O$19 -> 2.8 | E16: =TOC!$N$19 -> 0.8583333333
B17: ½ hourly mean | C17: 20 mg/m3 | D17: =TOC!$M$19 -> 13.5 | E17: =TOC!$L$19 -> 0.8583333333
A18: Hydrogen chloride | B18: Daily mean | C18: 10 mg/m3 | D18: =HCl!$O$19 -> 7.3 | E18: =HCl!$N$19 -> 3.841666667
B19: ½ hourly mean | C19: 60 mg/m3 | D19: =HCl!$M$19 -> 73.7 | E19: =HCl!$L$19 -> 3.841666667
A20: Sulphur dioxide | B20: Daily mean | C20: 50 mg/m3 | D20: ='SO2'!$O$19 -> 40 | E20: ='SO2'!$N$19 -> 10.99166667
B21: ½ hourly mean | C21: 200 mg/m3 | D21: ='SO2'!$M$19 -> 177.9 | E21: ='SO2'!$L$19 -> 10.99166667
A22: Carbon monoxide | B22: Daily mean | C22: 50 mg/m3 | D22: ='CO 95% 10 min'!Q19 -> 43.5 | E22: ='CO 95% 10 min'!P19 -> 23.45833333
B23: ½ hourly mean * | C23: 100 mg/m3 *
B24: 95%ile 10-min avg * | C24: 150 mg/m3 * | D24: ='CO 95% 10 min'!M19 -> 95.99166667
A25: Ammonia | B25: Daily mean | C25: No limit set | D25: ='NH3'!$O$19 -> 224.1 | E25: ='NH3'!$N$19 -> 188.4333333
A26: * = delete or amend as appropriate
A27: Comments :

Sheet HCl
A1: =+'Cover Page'!$B$29 -> Annual Performance Report 2021 | E1: =+'Cover Page'!$B$33 -> SUEZ R&R Kirklees EfW
A3: Monitoring of Hydrogen Chloride emissions | D3: Whole Installation | G3: See Notes in Cell Q3 | J3: =+A3 -> Monitoring of Hydrogen Chloride emissions | N3: Per Combustion Line | Q3: Notes:
Q4: User to add logic to complete Whole installation, Table A5:G18. From the data in Per Combustion Line, Table J6:O79, subject to No. of lines installed
A5: mg/Nm3 | B5: 1/2 Hourly Reference Periods | E5: Daily Reference Periods
A6: =+'Cover Page'!C39 -> 2021 | B6: 1/2 hourly HCl ELV | C6: Monthly 1/2 hourly mean | D6: Highest 1/2 hourly maximum | E6: Daily HCl ELV | F6: Monthly daily mean | G6: Highest daily maximum | J6: =+A6 -> 2021 | K6: mg/Nm3 | L6: Monthly 1/2 hourly mean | M6: Monthly 1/2 hourly maximum | N6: Monthly daily mean | O6: Monthly daily maximum
A7: Jan | B7: 60 | C7: =L7 -> 3.2 | D7: =M7 -> 49.5 | E7: 10 | F7: =N7 -> 3.2 | G7: =O7 -> 5.5 | J7: A1 | K7: Jan | L7: 3.2 | M7: 49.5 | N7: 3.2 | O7: 5.5
A8: Feb | B8: 60 | C8: =L8 -> 3 | D8: =M8 -> 29.1 | E8: 10 | F8: =N8 -> 3 | G8: =O8 -> 4.2 | K8: Feb | L8: 3 | M8: 29.1 | N8: 3 | O8: 4.2
A9: Mar | B9: 60 | C9: 4 | D9: 52.4 | E9: 10 | F9: 4 | G9: 5.7 | K9: Mar | L9: 4 | M9: 52.4 | N9: 4 | O9: 5.7 | Q9: Whole Installation table A5:G18:
A10: Apr | B10: 60 | C10: 5 | D10: 47.7 | E10: 10 | F10: 5 | G10: 7.3 | K10: Apr | L10: 5 | M10: 47.7 | N10: 5 | O10: 7.3 | Q10: Mean: for 1/2 hourly and daily periods calculate mean of values across all operational combustion lines for the month
A11: May | B11: 60 | C11: 1.9 | D11: 4.5 | E11: 10 | F11: 1.9 | G11: 2.8 | K11: May | L11: 1.9 | M11: 4.5 | N11: 1.9 | O11: 2.8
A12: Jun | B12: 60 | C12: 3.6 | D12: 33 | E12: 10 | F12: 3.6 | G12: 5.4 | K12: Jun | L12: 3.6 | M12: 33 | N12: 3.6 | O12: 5.4
A13: Jul | B13: 60 | C13: 4.1 | D13: 15 | E13: 10 | F13: 4.1 | G13: 6.5 | K13: Jul | L13: 4.1 | M13: 15 | N13: 4.1 | O13: 6.5 | Q13: Maximum: for 1/2 hourly and daily periods use the highest value across all operational combustion lines for the month
A14: Aug | B14: 60 | C14: 4.5 | D14: 73.7 | E14: 10 | F14: 4.5 | G14: 6.3 | K14: Aug | L14: 4.5 | M14: 73.7 | N14: 4.5 | O14: 6.3
A15: Sep | B15: 60 | C15: 3.8 | D15: 39.9 | E15: 10 | F15: 3.8 | G15: 5.3 | K15: Sep | L15: 3.8 | M15: 39.9 | N15: 3.8 | O15: 5.3
A16: Oct | B16: 60 | C16: 4 | D16: 14.3 | E16: 10 | F16: 4 | G16: 5 | K16: Oct | L16: 4 | M16: 14.3 | N16: 4 | O16: 5
A17: Nov | B17: 60 | C17: 4.4 | D17: 33.1 | E17: 10 | F17: 4.4 | G17: 5.7 | K17: Nov | L17: 4.4 | M17: 33.1 | N17: 4.4 | O17: 5.7
A18: Dec | B18: 60 | C18: 4.6 | D18: 17.9 | E18: 10 | F18: 4.6 | G18: 6.2 | K18: Dec | L18: 4.6 | M18: 17.9 | N18: 4.6 | O18: 6.2
K19: Annual | L19: =AVERAGE(L7:L18) -> 3.841666667 | M19: =MAX(M7:M18) -> 73.7 | N19: =AVERAGE(N7:N18) -> 3.841666667 | O19: =MAX(O7:O18) -> 7.3
A48: Comments :

Sheet SO2
A1: =+'Cover Page'!$B$29 -> Annual Performance Report 2021 | E1: =+'Cover Page'!$B$33 -> SUEZ R&R Kirklees EfW
A3: Monitoring of Sulphur dioxide emissions | D3: Whole Installation | G3: See Notes in Cell Q3 | J3: =+A3 -> Monitoring of Sulphur dioxide emissions | N3: Per Combustion Line | Q3: Notes:
Q4: User to add logic to complete Whole installation, Table A5:G18. From the data in Per Combustion Line, Table J6:O79, subject to No. of lines installed
A5: mg/Nm3 | B5: 1/2 Hourly Reference Periods | E5: Daily Reference Periods
A6: =+'Cover Page'!C39 -> 2021 | B6: 1/2 hourly SO2 ELV | C6: Monthly 1/2 hourly mean | D6: Highest 1/2 hourly maximum | E6: Daily SO2 ELV | F6: Monthly daily mean | G6: Highest daily maximum | J6: =+A6 -> 2021 | K6: mg/Nm3 | L6: Monthly 1/2 hourly mean | M6: Monthly 1/2 hourly maximum | N6: Monthly daily mean | O6: Monthly daily maximum
A7: Jan | B7: 200 | C7: =L7 -> 9.8 | D7: =M7 -> 86.5 | E7: 50 | F7: =N7 -> 9.8 | G7: =O7 -> 16.8 | J7: A1 | K7: Jan | L7: 9.8 | M7: 86.5 | N7: 9.8 | O7: 16.8
A8: Feb | B8: 200 | C8: =L8 -> 14.7 | D8: =M8 -> 41.3 | E8: 50 | F8: =N8 -> 14.7 | G8: =O8 -> 19.3 | K8: Feb | L8: 14.7 | M8: 41.3 | N8: 14.7 | O8: 19.3
A9: Mar | B9: 200 | C9: 10.7 | D9: 70.5 | E9: 50 | F9: 10.7 | G9: 17.7 | K9: Mar | L9: 10.7 | M9: 70.5 | N9: 10.7 | O9: 17.7 | Q9: Whole Installation table A5:G18:
A10: Apr | B10: 200 | C10: 9.7 | D10: 63.2 | E10: 50 | F10: 9.7 | G10: 17.9 | K10: Apr | L10: 9.7 | M10: 63.2 | N10: 9.7 | O10: 17.9 | Q10: Mean: for 1/2 hourly and daily periods calculate mean of values across all operational combustion lines for the month
A11: May | B11: 200 | C11: 20.2 | D11: 177.9 | E11: 50 | F11: 20.2 | G11: 40 | K11: May | L11: 20.2 | M11: 177.9 | N11: 20.2 | O11: 40
A12: Jun | B12: 200 | C12: 17.6 | D12: 52.2 | E12: 50 | F12: 17.6 | G12: 29.8 | K12: Jun | L12: 17.6 | M12: 52.2 | N12: 17.6 | O12: 29.8
A13: Jul | B13: 200 | C13: 12.9 | D13: 131.7 | E13: 50 | F13: 12.9 | G13: 19.8 | K13: Jul | L13: 12.9 | M13: 131.7 | N13: 12.9 | O13: 19.8 | Q13: Maximum: for 1/2 hourly and daily periods use the highest value across all operational combustion lines for the month
A14: Aug | B14: 200 | C14: 8.9 | D14: 117.1 | E14: 50 | F14: =N14 -> 8.9 | G14: 18.8 | K14: Aug | L14: 8.9 | M14: 117.1 | N14: 8.9 | O14: 18.8
A15: Sep | B15: 200 | C15: 5.1 | D15: 87.7 | E15: 50 | F15: 5.1 | G15: 10.8 | K15: Sep | L15: 5.1 | M15: 87.7 | N15: 5.1 | O15: 10.8
A16: Oct | B16: 200 | C16: 6.2 | D16: 101.3 | E16: 50 | F16: 6.2 | G16: 11.9 | K16: Oct | L16: 6.2 | M16: 101.3 | N16: 6.2 | O16: 11.9
A17: Nov | B17: 200 | C17: 8 | D17: 64.555 | E17: 50 | F17: 8 | G17: 13.3 | K17: Nov | L17: 8 | M17: 64.555 | N17: 8 | O17: 13.3
A18: Dec | B18: 200 | C18: 8.1 | D18: 54.4 | E18: 50 | F18: 8.1 | G18: 12.5 | K18: Dec | L18: 8.1 | M18: 54.4 | N18: 8.1 | O18: 12.5
K19: Annual | L19: =AVERAGE(L7:L18) -> 10.99166667 | M19: =MAX(M7:M18) -> 177.9 | N19: =AVERAGE(N7:N18) -> 10.99166667 | O19: =MAX(O7:O18) -> 40
A48: Comments :

Sheet NOx
A1: =+'Cover Page'!$B$29 -> Annual Performance Report 2021 | E1: =+'Cover Page'!$B$33 -> SUEZ R&R Kirklees EfW
A3: Monitoring of Oxides of Nitrogen emissions | D3: Whole Installation | G3: See Notes in Cell Q3 | J3: =+A3 -> Monitoring of Oxides of Nitrogen emissions | N3: Per Combustion Line | Q3: Notes:
Q4: User to add logic to complete Whole installation, Table A5:G18. From the data in Per Combustion Line, Table J6:O79, subject to No. of lines installed
A5: mg/Nm3 | B5: 1/2 Hourly Reference Periods | E5: Daily Reference Periods
A6: =+'Cover Page'!C39 -> 2021 | B6: 1/2 hourly NOx ELV | C6: Monthly 1/2 hourly mean | D6: Highest 1/2 hourly maximum | E6: Daily NOx ELV | F6: Monthly daily mean | G6: Highest daily maximum | J6: =+A6 -> 2021 | K6: mg/Nm3 | L6: Monthly 1/2 hourly mean | M6: Monthly 1/2 hourly maximum | N6: Monthly daily mean | O6: Monthly daily maximum
A7: Jan | B7: 400 | C7: =L7 -> 177.1 | D7: =M7 -> 228.7 | E7: 200 | F7: =N7 -> 177.1 | G7: =O7 -> 197.1 | J7: A1 | K7: Jan | L7: 177.1 | M7: 228.7 | N7: 177.1 | O7: 197.1
A8: Feb | B8: 400 | C8: =L8 -> 174.4 | D8: =M8 -> 226.3 | E8: 200 | F8: =N8 -> 174.4 | G8: =O8 -> 180.6 | K8: Feb | L8: 174.4 | M8: 226.3 | N8: 174.4 | O8: 180.6
A9: Mar | B9: 400 | C9: 173.3 | D9: 354.5 | E9: 200 | F9: 173.3 | G9: 187.2 | K9: Mar | L9: 173.3 | M9: 354.5 | N9: 173.3 | O9: 187.2 | Q9: Whole Installation table A5:G18:
A10: Apr | B10: 400 | C10: 234.4 | D10: 176 | E10: 200 | F10: 234.4 | G10: 185 | K10: Apr | L10: 234.4 | M10: 176 | N10: 234.4 | O10: 185 | Q10: Mean: for 1/2 hourly and daily periods calculate mean of values across all operational combustion lines for the month
A11: May | B11: 400 | C11: 158.2 | D11: 213 | E11: 200 | F11: 158.2 | G11: 161.7 | K11: May | L11: 158.2 | M11: 213 | N11: 158.2 | O11: 161.7
A12: Jun | B12: 400 | C12: 181.3 | D12: 237.7 | E12: 200 | F12: 181.3 | G12: 196 | K12: Jun | L12: 181.3 | M12: 237.7 | N12: 181.3 | O12: 196
A13: Jul | B13: 400 | C13: 188.6 | D13: 227.8 | E13: 200 | F13: 188.6 | G13: 198.2 | K13: Jul | L13: 188.6 | M13: 227.8 | N13: 188.6 | O13: 198.2 | Q13: Maximum: for 1/2 hourly and daily periods use the highest value across all operational combustion lines for the month
A14: Aug | B14: 400 | C14: 187.7 | D14: 243.8 | E14: 200 | F14: 187.7 | G14: 199 | K14: Aug | L14: 187.7 | M14: 243.8 | N14: 187.7 | O14: 199
A15: Sep | B15: 400 | C15: 182,7 | D15: 218.3 | E15: 200 | F15: 182.7 | G15: 198.5 | K15: Sep | L15: 182,7 | M15: 218.3 | N15: 182.7 | O15: 198.5
A16: Oct | B16: 400 | C16: 174 | D16: 222.9 | E16: 200 | F16: 174 | G16: 182.7 | K16: Oct | L16: 174 | M16: 222.9 | N16: 174 | O16: 182.7
A17: Nov | B17: 400 | C17: 189.4 | D17: 231.8 | E17: 200 | F17: 189.4 | G17: 203.2 | K17: Nov | L17: 189.4 | M17: 231.8 | N17: 189.4 | O17: 203.2
A18: Dec | B18: 400 | C18: 187.1 | D18: 235.4 | E18: 200 | F18: 187.1 | G18: 197.3 | K18: Dec | L18: 187.1 | M18: 235.4 | N18: 187.1 | O18: 197.3
K19: Annual | L19: =AVERAGE(L7:L18) -> 184.1363636 | M19: =MAX(M7:M18) -> 354.5 | N19: =AVERAGE(N7:N18) -> 184.0166667 | O19: =MAX(O7:O18) -> 203.2
A48: Comments :

Sheet TOC
A1: =+'Cover Page'!$B$29 -> Annual Performance Report 2021 | E1: =+'Cover Page'!$B$33 -> SUEZ R&R Kirklees EfW
A3: Monitoring of Total organic carbon emissions | D3: Whole Installation | G3: See Notes in Cell Q3 | J3: =+A3 -> Monitoring of Total organic carbon emissions | N3: Per Combustion Line | Q3: Notes:
Q4: User to add logic to complete Whole installation, Table A5:G18. From the data in Per Combustion Line, Table J6:O79, subject to No. of lines installed
A5: mg/Nm3 | B5: 1/2 Hourly Reference Periods | E5: Daily Reference Periods
A6: =+'Cover Page'!C39 -> 2021 | B6: 1/2 hourly TOC ELV | C6: Monthly 1/2 hourly mean | D6: Highest 1/2 hourly maximum | E6: Daily TOC ELV | F6: Monthly daily mean | G6: Highest daily maximum | J6: =+A6 -> 2021 | K6: mg/Nm3 | L6: Monthly 1/2 hourly mean | M6: Monthly 1/2 hourly maximum | N6: Monthly daily mean | O6: Monthly daily maximum
A7: Jan | B7: 20 | C7: =L7 -> 1.2 | D7: =M7 -> 13.5 | E7: 10 | F7: =N7 -> 1.2 | G7: =O7 -> 2 | J7: A1 | K7: Jan | L7: 1.2 | M7: 13.5 | N7: 1.2 | O7: 2
A8: Feb | B8: 20 | C8: =L8 -> 0.5 | D8: =M8 -> 10.4 | E8: 10 | F8: =N8 -> 0.5 | G8: =O8 -> 1.6 | K8: Feb | L8: 0.5 | M8: 10.4 | N8: 0.5 | O8: 1.6
A9: Mar | B9: 20 | C9: 0.2 | D9: 7.9 | E9: 10 | F9: 0.2 | G9: 0.5 | K9: Mar | L9: 0.2 | M9: 7.9 | N9: 0.2 | O9: 0.5 | Q9: Whole Installation table A5:G18:
A10: Apr | B10: 20 | C10: 0.9 | D10: 3.9 | E10: 10 | F10: 0.9 | G10: 1.5 | K10: Apr | L10: 0.9 | M10: 3.9 | N10: 0.9 | O10: 1.5 | Q10: Mean: for 1/2 hourly and daily periods calculate mean of values across all operational combustion lines for the month
A11: May | B11: 20 | C11: 1.4 | D11: 6.6 | E11: 10 | F11: 1.4 | G11: 2.8 | K11: May | L11: 1.4 | M11: 6.6 | N11: 1.4 | O11: 2.8
A12: Jun | B12: 20 | C12: 0.9 | D12: 6.2 | E12: 10 | F12: 0.9 | G12: 1.3 | K12: Jun | L12: 0.9 | M12: 6.2 | N12: 0.9 | O12: 1.3
A13: Jul | B13: 20 | C13: 1 | D13: 11.5 | E13: 10 | F13: 1 | G13: 1.2 | K13: Jul | L13: 1 | M13: 11.5 | N13: 1 | O13: 1.2 | Q13: Maximum: for 1/2 hourly and daily periods use the highest value across all operational combustion lines for the month
A14: Aug | B14: 20 | C14: 0.9 | D14: 7.5 | E14: 10 | F14: 0.9 | G14: 1.3 | K14: Aug | L14: 0.9 | M14: 7.5 | N14: 0.9 | O14: 1.3
A15: Sep | B15: 20 | C15: 0.9 | D15: 10.2 | E15: 10 | F15: 0.9 | G15: 1.2 | K15: Sep | L15: 0.9 | M15: 10.2 | N15: 0.9 | O15: 1.2
A16: Oct | B16: 20 | C16: 0.9 | D16: 9 | E16: 10 | F16: 0.9 | G16: 1.1 | K16: Oct | L16: 0.9 | M16: 9 | N16: 0.9 | O16: 1.1
A17: Nov | B17: 20 | C17: 0.7 | D17: 6 | E17: 10 | F17: 0.7 | G17: 0.9 | K17: Nov | L17: 0.7 | M17: 6 | N17: 0.7 | O17: 0.9
A18: Dec | B18: 20 | C18: 0.8 | D18: 7.4 | E18: 10 | F18: 0.8 | G18: 1.3 | K18: Dec | L18: 0.8 | M18: 7.4 | N18: 0.8 | O18: 1.3
K19: Annual | L19: =AVERAGE(L7:L18) -> 0.8583333333 | M19: =MAX(M7:M18) -> 13.5 | N19: =AVERAGE(N7:N18) -> 0.8583333333 | O19: =MAX(O7:O18) -> 2.8
A48: Comments :

Sheet Particulates
A1: =+'Cover Page'!$B$29 -> Annual Performance Report 2021 | E1: =+'Cover Page'!$B$33 -> SUEZ R&R Kirklees EfW
A3: Monitoring of Particulate matter emissions | D3: Whole Installation | G3: See Notes in Cell Q3 | J3: =+A3 -> Monitoring of Particulate matter emissions | N3: Per Combustion Line | Q3: Notes:
Q4: User to add logic to complete Whole installation, Table A5:G18. From the data in Per Combustion Line, Table J6:O79, subject to No. of lines installed
A5: mg/Nm3 | B5: 1/2 Hourly Reference Periods | E5: Daily Reference Periods
A6: =+'Cover Page'!C39 -> 2021 | B6: 1/2 hourly PM ELV | C6: Monthly 1/2 hourly mean | D6: Highest 1/2 hourly maximum | E6: Daily PM ELV | F6: Monthly daily mean | G6: Highest daily maximum | J6: =+A6 -> 2021 | K6: mg/Nm3 | L6: Monthly 1/2 hourly mean | M6: Monthly 1/2 hourly maximum | N6: Monthly daily mean | O6: Monthly daily maximum
A7: Jan | B7: 30 | C7: =L7 -> 1.5 | D7: =M7 -> 7.6 | E7: 10 | F7: =N7 -> 1.5 | G7: =O7 -> 3.2 | J7: A1 | K7: Jan | L7: 1.5 | M7: 7.6 | N7: 1.5 | O7: 3.2
A8: Feb | B8: 30 | C8: =L8 -> 2.1 | D8: =M8 -> 8.9 | E8: 10 | F8: =N8 -> 2.1 | G8: =O8 -> 3.5 | K8: Feb | L8: 2.1 | M8: 8.9 | N8: 2.1 | O8: 3.5
A9: Mar | B9: 30 | C9: 2.5 | D9: 13.1 | E9: 10 | F9: 2.5 | G9: 3.9 | K9: Mar | L9: 2.5 | M9: 13.1 | N9: 2.5 | O9: 3.9 | Q9: Whole Installation table A5:G18:
A10: Apr | B10: 30 | C10: 1.3 | D10: 4.4 | E10: 10 | F10: 1.3 | G10: 2.3 | K10: Apr | L10: 1.3 | M10: 4.4 | N10: 1.3 | O10: 2.3 | Q10: Mean: for 1/2 hourly and daily periods calculate mean of values across all operational combustion lines for the month
A11: May | B11: 30 | C11: 5.5 | D11: 41.3 | E11: 10 | F11: 5.5 | G11: 19.6 | K11: May | L11: 5.5 | M11: 41.3 | N11: 5.5 | O11: 19.6
A12: Jun | B12: 30 | C12: 2.8 | D12: 28.7 | E12: 10 | F12: 2.8 | G12: 9.2 | K12: Jun | L12: 2.8 | M12: 28.7 | N12: 2.8 | O12: 9.2
A13: Jul | B13: 30 | C13: 2.4 | D13: 32.8 | E13: 10 | F13: 2.4 | G13: 5.2 | K13: Jul | L13: 2.4 | M13: 32.8 | N13: 2.4 | O13: 5.2 | Q13: Maximum: for 1/2 hourly and daily periods use the highest value across all operational combustion lines for the month
A14: Aug | B14: 30 | C14: 1.5 | D14: 15.1 | E14: 10 | F14: 1.5 | G14: 2.4 | K14: Aug | L14: 1.5 | M14: 15.1 | N14: 1.5 | O14: 2.4
A15: Sep | B15: 30 | C15: 1.5 | D15: 20.9 | E15: 10 | F15: 1.5 | G15: 3 | K15: Sep | L15: 1.5 | M15: 20.9 | N15: 1.5 | O15: 3
A16: Oct | B16: 30 | C16: 1.5 | D16: 6.3 | E16: 10 | F16: 1.5 | G16: 2 | K16: Oct | L16: 1.5 | M16: 6.3 | N16: 1.5 | O16: 2
A17: Nov | B17: 30 | C17: 1.3 | D17: 6.1 | E17: 10 | F17: 1.3 | G17: 1.8 | K17: Nov | L17: 1.3 | M17: 6.1 | N17: 1.3 | O17: 1.8
A18: Dec | B18: 30 | C18: 1.4 | D18: 4.4 | E18: 10 | F18: 1.4 | G18: 2.9 | K18: Dec | L18: 1.4 | M18: 4.4 | N18: 1.4 | O18: 2.9
K19: Annual | L19: =AVERAGE(L7:L18) -> 2.108333333 | M19: =MAX(M7:M18) -> 41.3 | N19: =AVERAGE(N7:N18) -> 2.108333333 | O19: =MAX(O7:O18) -> 19.6
A48: Comments :

Sheet CO 95% 10 min
A1: =+'Cover Page'!$B$29 -> Annual Performance Report 2021 | E1: =+'Cover Page'!$B$33 -> SUEZ R&R Kirklees EfW
A3: Monitoring of Carbon Monoxide (10-minute avg) | E3: Whole Installation | H3: See Notes in Cell S3 | J3: =+A3 -> Monitoring of Carbon Monoxide (10-minute avg) | O3: Per Combustion Line | Q3: Notes: | S3: Notes:
S4: User to add logic to complete Whole installation, Table A5:H18. From the data in Per Combustion Line, Table K6:Q79, subject to No. of lines installed
A5: mg/Nm3 | B5: 10-minute Reference Periods | F5: Daily Reference Periods
A6: =+'Cover Page'!C39 -> 2021 | B6: 95%ile 10-min avg CO ELV | C6: 95%ile 10-min avg maximum | D6: Monthly CO 10-min avg mean | E6: 10-min avg maximum | F6: Daily CO ELV | G6: Monthly daily mean | H6: Highest daily maximum | K6: =+A6 -> 2021 | L6: mg/Nm3 | M6: 95%ile 10-min avg maximum | N6: Monthly CO 10-min avg mean | O6: 10-min avg maximum | P6: Monthly daily mean | Q6: Monthly daily maximum
A7: Jan | B7: 150 | C7: =M7 -> 120 | D7: =N7 -> 28.1 | E7: =O7 -> 856.9 | F7: 50 | G7: =P7 -> 28.1 | H7: =Q7 -> 46 | K7: A1 | L7: Jan | M7: 120 | N7: 28.1 | O7: 856.9 | P7: 28.1 | Q7: 46
A8: Feb | B8: =+B7 -> 150 | C8: =M8 -> 146.4 | D8: =N8 -> 26 | E8: =O8 -> 325 | F8: =+F7 -> 50 | G8: =P8 -> 26 | H8: =Q8 -> 37.1 | L8: Feb | M8: 146.4 | N8: 26 | O8: 325 | P8: 26 | Q8: 37.1
A9: Mar | B9: =+B8 -> 150 | C9: 116 | D9: 27.5 | E9: 549.5 | F9: =+F8 -> 50 | G9: 27.5 | H9: 43.5 | L9: Mar | M9: 116 | N9: 27.5 | O9: 549.5 | P9: 27.5 | Q9: 43.5 | S9: Whole Installation table A5:H18:
A10: Apr | B10: 150 | C10: 130.3 | D10: 34.4 | E10: 315.4 | F10: 50 | G10: 34.4 | H10: 43.5 | L10: Apr | M10: 130.3 | N10: 34.4 | O10: 315.4 | P10: 34.4 | Q10: 43.5 | S10: Mean: for 10-min and daily periods use average of all operational combustion lines.
A11: May | B11: 150 | C11: 91.3 | D11: 22.8 | E11: 278.5 | F11: 50 | G11: 22.8 | H11: 39.5 | L11: May | M11: 91.3 | N11: 22.8 | O11: 278.5 | P11: 22.8 | Q11: 39.5
A12: Jun | B12: 150 | C12: 91.1 | D12: 15.7 | E12: 242.9 | F12: 50 | G12: 15.7 | H12: 22.6 | L12: Jun | M12: 91.1 | N12: 15.7 | O12: 242.9 | P12: 15.7 | Q12: 22.6
A13: Jul | B13: 150 | C13: 89.6 | D13: 22 | E13: 499.9 | F13: 50 | G13: 22 | H13: 30.3 | L13: Jul | M13: 89.6 | N13: 22 | O13: 499.9 | P13: 22 | Q13: 30.3 | S13: Maximum: for 10-min and daily periods use the highest of all operational combustion lines in any month.
A14: Aug | B14: 150 | C14: 72.8 | D14: 19 | E14: 413.8 | F14: 50 | G14: 19 | H14: 27.8 | L14: Aug | M14: 72.8 | N14: 19 | O14: 413.8 | P14: 19 | Q14: 27.8
A15: Sep | B15: 150 | C15: 74.6 | D15: 18.6 | E15: 315.9 | F15: 50 | G15: 18.6 | H15: 27.3 | L15: Sep | M15: 74.6 | N15: 18.6 | O15: 315.9 | P15: 18.6 | Q15: 27.3
A16: Oct | B16: 150 | C16: 67.5 | D16: 20.6 | E16: 442.8 | F16: 50 | G16: 20.6 | H16: 32.3 | L16: Oct | M16: 67.5 | N16: 20.6 | O16: 442.8 | P16: 20.6 | Q16: 32.3
A17: Nov | B17: 150 | C17: 75.3 | D17: 23.7 | E17: 222.8 | F17: 50 | G17: 23.7 | H17: 32.9 | L17: Nov | M17: 75.3 | N17: 23.7 | O17: 222.8 | P17: 23.7 | Q17: 32.9
A18: Dec | B18: 150 | C18: 77 | D18: 23.1 | E18: 234 | F18: 50 | G18: 23.1 | H18: 36.4 | L18: Dec | M18: 77 | N18: 23.1 | O18: 234 | P18: 23.1 | Q18: 36.4
L19: Annual | M19: =AVERAGE(M7:M18) -> 95.99166667 | N19: =MIN(N7:N18) -> 15.7 | O19: =MAX(O7:O18) -> 856.9 | P19: =AVERAGE(P7:P18) -> 23.45833333 | Q19: =MAX(Q8:Q18) -> 43.5
A48: Comments :
A49: Environment Agency explanatory note: The 10-minute average ELV is based on the “95th percentile”. In this case this means that 95% of the 10 minute averages in the relevant 24-hour period (i.e. 137) must be below 150 mg/Nm3, and 5% (i.e. 7) are allowed to be any value above 150 mg/Nm3. Whilst we expect operators to minimise CO emissions at all times, it is perfectly acceptable for the value of the maximum 10-minute average to be above 150 mg/Nm3, provided the 95th percentile ELV has been met for that period.

Sheet NH3
A1: =+'Cover Page'!$B$29 -> Annual Performance Report 2021 | E1: =+'Cover Page'!$B$33 -> SUEZ R&R Kirklees EfW
A3: Monitoring of Ammnonia emissions | D3: Whole Installation | G3: See Notes in Cell Q3 | J3: =+A3 -> Monitoring of Ammnonia emissions | N3: Per Combustion Line | Q3: Notes:
Q4: User to add logic to complete Whole installation, Table A5:G18. From the data in Per Combustion Line, Table J6:O79, subject to No. of lines installed
A5: mg/Nm3 | B5: 1/2 Hourly Reference Periods | E5: Daily Reference Periods
A6: =+'Cover Page'!C39 -> 2021 | B6: 1/2 hourly NH3 ELV | C6: Monthly 1/2 hourly mean | D6: Highest 1/2 hourly maximum | E6: Daily NH3 ELV | F6: Monthly daily mean | G6: Highest daily maximum | J6: =+A6 -> 2021 | K6: mg/Nm3 | L6: Monthly 1/2 hourly mean | M6: Monthly 1/2 hourly maximum | N6: Monthly daily mean | O6: Monthly daily maximum
A7: Jan | B7: 0 | C7: =L7 ->  | D7: =M7 -> 240 | E7: 10 | F7: =N7 -> 195.4 | G7: =O7 -> 224.1 | J7: A1 | K7: Jan | M7: 240 | N7: 195.4 | O7: 224.1
A8: Feb | B8: =+B7 -> 0 | C8: =L8 -> 193.7 | D8: =M8 -> 230.5 | E8: =+E7 -> 10 | F8: =N8 -> 193.7 | G8: =O8 -> 197 | K8: Feb | L8: 193.7 | M8: 230.5 | N8: 193.7 | O8: 197
A9: Mar | B9: =+B8 -> 0 | C9: 192.2 | D9: 243.5 | E9: =+E8 -> 10 | F9: 192.2 | G9: 198 | K9: Mar | L9: 192.2 | M9: 243.5 | N9: 192.2 | O9: 198 | Q9: Whole Installation table A5:G18:
A10: Apr | B10: 0 | C10: 192.6 | D10: 240.4 | E10: 10 | F10: 192.6 | G10: 197.4 | K10: Apr | L10: 192.6 | M10: 240.4 | N10: 192.6 | O10: 197.4 | Q10: Mean: for 1/2 hourly and daily periods calculate mean of values across all operational combustion lines for the month
A11: May | B11: 0 | C11: 187.1 | D11: 271.4 | E11: 10 | F11: 187.1 | G11: 192.9 | K11: May | L11: 187.1 | M11: 271.4 | N11: 187.1 | O11: 192.9
A12: Jun | B12: 0 | C12: 193.4 | D12: 248.7 | E12: 10 | F12: 193.4 | G12: 199.1 | K12: Jun | L12: 193.4 | M12: 248.7 | N12: 193.4 | O12: 199.1
A13: Jul | B13: 0 | C13: 192.3 | D13: 293.1 | E13: 10 | F13: 192.3 | G13: 199 | K13: Jul | L13: 192.3 | M13: 293.1 | N13: 192.3 | O13: 199 | Q13: Maximum: for 1/2 hourly and daily periods use the highest value across all operational combustion lines for the month
A14: Aug | B14: 0 | C14: 192.7 | D14: 244.6 | E14: 10 | F14: 192.7 | G14: 198.7 | K14: Aug | L14: 192.7 | M14: 244.6 | N14: 192.7 | O14: 198.7
A15: Sep | B15: 0 | C15: 190.9 | D15: 237.8 | E15: 10 | F15: 190.9 | G15: 197.9 | K15: Sep | L15: 190.9 | M15: 237.8 | N15: 190.9 | O15: 197.9
A16: Oct | B16: 0 | C16: 175 | D16: 237.7 | E16: 10 | F16: 175 | G16: 181.2 | K16: Oct | L16: 175 | M16: 237.7 | N16: 175 | O16: 181.2
A17: Nov | B17: 0 | C17: 177 | D17: 227.8 | E17: 10 | F17: 177 | G17: 186 | K17: Nov | L17: 177 | M17: 227.8 | N17: 177 | O17: 186
A18: Dec | B18: 0 | C18: 178.9 | D18: 248.6 | E18: 10 | F18: 178.9 | G18: 196.7 | K18: Dec | L18: 178.9 | M18: 248.6 | N18: 178.9 | O18: 196.7
K19: Annual | L19: =AVERAGE(L7:L18) -> 187.8 | M19: =MAX(M7:M18) -> 293.1 | N19: =AVERAGE(N7:N18) -> 188.4333333 | O19: =MAX(O7:O18) -> 224.1
J21: =+A6 -> 2021 | K21: mg/Nm3 | L21: Monthly 1/2 hourly mean | M21: Monthly 1/2 hourly maximum | N21: Monthly daily mean | O21: Monthly daily maximum
J22: A2 | K22: Jan | L22: 0 | M22: 0 | N22: 0 | O22: 0
K23: Feb | L23: 0 | M23: 0 | N23: 0 | O23: 0
K24: Mar | L24: 0 | M24: 0 | N24: 0 | O24: 0
K25: Apr | L25: 0 | M25: 0 | N25: 0 | O25: 0
K26: May | L26: 0 | M26: 0 | N26: 0 | O26: 0
K27: Jun | L27: 0 | M27: 0 | N27: 0 | O27: 0
K28: Jul | L28: 0 | M28: 0 | N28: 0 | O28: 0
K29: Aug | L29: 0 | M29: 0 | N29: 0 | O29: 0
K30: Sep | L30: 0 | M30: 0 | N30: 0 | O30: 0
K31: Oct | L31: 0 | M31: 0 | N31: 0 | O31: 0
K32: Nov | L32: 0 | M32: 0 | N32: 0 | O32: 0
K33: Dec | L33: 0 | M33: 0 | N33: 0 | O33: 0
K34: Annual | L34: =AVERAGE(L22:L33) -> 0 | M34: =MAX(M22:M33) -> 0 | N34: =AVERAGE(N22:N33) -> 0 | O34: =MAX(O22:O33) -> 0
J36: =+A6 -> 2021 | K36: mg/Nm3 | L36: Monthly 1/2 hourly mean | M36: Monthly 1/2 hourly maximum | N36: Monthly daily mean | O36: Monthly daily maximum
J37: A3 | K37: Jan | L37: 0 | M37: 0 | N37: 0 | O37: 0
K38: Feb | L38: 0 | M38: 0 | N38: 0 | O38: 0
K39: Mar | L39: 0 | M39: 0 | N39: 0 | O39: 0
K40: Apr | L40: 0 | M40: 0 | N40: 0 | O40: 0
K41: May | L41: 0 | M41: 0 | N41: 0 | O41: 0
K42: Jun | L42: 0 | M42: 0 | N42: 0 | O42: 0
K43: Jul | L43: 0 | M43: 0 | N43: 0 | O43: 0
K44: Aug | L44: 0 | M44: 0 | N44: 0 | O44: 0
K45: Sep | L45: 0 | M45: 0 | N45: 0 | O45: 0
K46: Oct | L46: 0 | M46: 0 | N46: 0 | O46: 0
K47: Nov | L47: 0 | M47: 0 | N47: 0 | O47: 0
A48: Comments : | K48: Dec | L48: 0 | M48: 0 | N48: 0 | O48: 0
A49: An indicated ELV value of zero in the table above means that no ammonia limit is set in the permit. | K49: Annual | L49: =AVERAGE(L37:L48) -> 0 | M49: =MAX(M37:M48) -> 0 | N49: =AVERAGE(N37:N48) -> 0 | O49: =MAX(O37:O48) -> 0
J51: =+A6 -> 2021 | K51: mg/Nm3 | L51: Monthly 1/2 hourly mean | M51: Monthly 1/2 hourly maximum | N51: Monthly daily mean | O51: Monthly daily maximum
J52: A4 | K52: Jan | L52: 0 | M52: 0 | N52: 0 | O52: 0
K53: Feb | L53: 0 | M53: 0 | N53: 0 | O53: 0
K54: Mar | L54: 0 | M54: 0 | N54: 0 | O54: 0
K55: Apr | L55: 0 | M55: 0 | N55: 0 | O55: 0
K56: May | L56: 0 | M56: 0 | N56: 0 | O56: 0
K57: Jun | L57: 0 | M57: 0 | N57: 0 | O57: 0
K58: Jul | L58: 0 | M58: 0 | N58: 0 | O58: 0
K59: Aug | L59: 0 | M59: 0 | N59: 0 | O59: 0
K60: Sep | L60: 0 | M60: 0 | N60: 0 | O60: 0
K61: Oct | L61: 0 | M61: 0 | N61: 0 | O61: 0
K62: Nov | L62: 0 | M62: 0 | N62: 0 | O62: 0
K63: Dec | L63: 0 | M63: 0 | N63: 0 | O63: 0
K64: Annual | L64: =AVERAGE(L52:L63) -> 0 | M64: =MAX(M52:M63) -> 0 | N64: =AVERAGE(N52:N63) -> 0 | O64: =MAX(O52:O63) -> 0
J66: =+A6 -> 2021 | K66: mg/Nm3 | L66: Monthly 1/2 hourly mean | M66: Monthly 1/2 hourly maximum | N66: Monthly daily mean | O66: Monthly daily maximum
J67: A5 | K67: Jan | L67: 0 | M67: 0 | N67: 0 | O67: 0
K68: Feb | L68: 0 | M68: 0 | N68: 0 | O68: 0
K69: Mar | L69: 0 | M69: 0 | N69: 0 | O69: 0
K70: Apr | L70: 0 | M70: 0 | N70: 0 | O70: 0
K71: May | L71: 0 | M71: 0 | N71: 0 | O71: 0
K72: Jun | L72: 0 | M72: 0 | N72: 0 | O72: 0
K73: Jul | L73: 0 | M73: 0 | N73: 0 | O73: 0
K74: Aug | L74: 0 | M74: 0 | N74: 0 | O74: 0
K75: Sep | L75: 0 | M75: 0 | N75: 0 | O75: 0
K76: Oct | L76: 0 | M76: 0 | N76: 0 | O76: 0
K77: Nov | L77: 0 | M77: 0 | N77: 0 | O77: 0
K78: Dec | L78: 0 | M78: 0 | N78: 0 | O78: 0
K79: Annual | L79: =AVERAGE(L67:L78) -> 0 | M79: =MAX(M67:M78) -> 0 | N79: =AVERAGE(N67:N78) -> 0 | O79: =MAX(O67:O78) -> 0
